fUSD/lending_fUSD_20260612
["ID","MTS","AMOUNT","RATE_DAILY","PERIOD"]
[424863731,1781213433000,-183.08077087,0.00010857,2]
[424863734,1781213433000,-917.87378304,0.00010857,2]
[424863730,1781213433000,-500.0,0.00010857,2]
[424863729,1781213433000,-397.97871834,0.00010857,2]
[424863735,1781213433000,-917.87378304,0.00010857,2]
[424863732,1781213433000,-917.87378304,0.00010857,2]
[424863737,1781213433000,-900.0,0.000109,3]
[424863733,1781213433000,-917.87378304,0.00010857,2]
[424863746,1781213433000,-500.0,0.00010958,2]
[424863743,1781213433000,-500.0,0.00010958,2]
[424863748,1781213433000,-500.0,0.00010958,2]
[424863741,1781213433000,-500.0,0.00010958,2]
[424863744,1781213433000,-500.0,0.00010958,2]
[424863739,1781213433000,-500.0,0.00010958,2]
[424863742,1781213433000,-500.0,0.00010958,2]
[424863740,1781213433000,-500.0,0.00010958,2]
[424863747,1781213433000,-500.0,0.00010958,2]
[424863809,1781213434000,-150.0,0.00017468,2]
[424863811,1781213434000,-150.0,0.00017595,2]
[424863808,1781213434000,-151.0,0.00017468,2]
[424863810,1781213434000,-152.0,0.00017494,2]
[424863802,1781213434000,-151.0,0.00016662,2]
[424863807,1781213434000,-151.0,0.00017468,2]
[424863800,1781213434000,-3078.38002779,0.00016621,2]
[424863801,1781213434000,-1672.7364795,0.0001664,2]
[424863803,1781213434000,-190.74,0.00016664,2]
[424863795,1781213434000,-6441.60196652,0.00015968,2]
[424863813,1781213434000,-1798.80895522,0.00017736,2]
[424863812,1781213434000,-150.0,0.00017595,2]
[424863819,1781213434000,-875.8866,0.0001817,2]
[424863806,1781213434000,-1734.62772924,0.00017188,2]
[424863805,1781213434000,-150.99,0.00016922,2]
[424863814,1781213434000,-767.48,0.00017776,2]
[424863816,1781213434000,-521.0,0.00018,2]
[424863817,1781213434000,-151.0,0.00018,2]
[424863815,1781213434000,-350.0,0.00018,2]
[424863818,1781213434000,-151.0,0.00018,2]
[424863821,1781213434000,-186.2,0.0001817,2]
[424863820,1781213434000,-186.2,0.0001817,2]
[424863824,1781213434000,-231.12275902,0.000184,2]
[424863796,1781213434000,-300.0,0.00016,2]
[424863804,1781213434000,-19999.99,0.00016922,2]
[424863797,1781213434000,-1613.0535,0.00016092,2]
[424863771,1781213434000,-500.0,0.00013575,2]
[424863799,1781213434000,-1054.6,0.00016438,2]
[424863823,1781213434000,-6441.60196652,0.00018337,2]
[424863769,1781213434000,-3078.38002785,0.00013499,2]
[424863776,1781213434000,-6441.60196652,0.00013599,2]
[424863770,1781213434000,-500.0,0.00013575,2]
[424863772,1781213434000,-500.0,0.00013575,2]
[424863773,1781213434000,-500.0,0.00013575,2]
[424863774,1781213434000,-500.0,0.00013575,2]
[424863775,1781213434000,-500.0,0.00013575,2]
[424863777,1781213434000,-200.0,0.00013699,2]
[424863779,1781213434000,-500.0,0.00013699,2]
[424863780,1781213434000,-500.0,0.00013699,2]
[424863782,1781213434000,-500.0,0.00013699,2]
[424863791,1781213434000,-560.49449867,0.00014895,2]
[424863790,1781213434000,-767.48,0.00014813,2]
[424863781,1781213434000,-500.0,0.00013699,2]
[424863783,1781213434000,-307.0068747,0.00013789,2]
[424863784,1781213434000,-3622.34,0.00013887,2]
[424863787,1781213434000,-250.0,0.00014,2]
[424863786,1781213434000,-1100.0,0.000139,5]
[424863789,1781213434000,-190.74,0.00014303,2]
[424863788,1781213434000,-912.14,0.00014119,2]
[424863785,1781213434000,-200.0,0.00013887,2]
[424863793,1781213434000,-912.14,0.00015402,2]
[424863792,1781213434000,-1500.0,0.00014996,2]
[424863794,1781213434000,-1555.5,0.00015544,2]
[424863798,1781213434000,-767.48,0.00016294,2]
[424863822,1781213434000,-1865.36488656,0.00018284,2]
[424863778,1781213434000,-500.0,0.00013699,2]
[424863836,1781213434000,-233.490434,0.000196,2]
[424863860,1781213434000,-85219.0,0.0002,2]
[424863853,1781213434000,-8725.0,0.0002,2]
[424863856,1781213434000,-12942.03,0.0002,2]
[424863855,1781213434000,-26173.53,0.0002,2]
[424863857,1781213434000,-297.99,0.0002,2]
[424863861,1781213434000,-364.0,0.0002,2]
[424863870,1781213434000,-22075.63,0.0002,2]
[424863862,1781213434000,-400.0,0.0002,2]
[424863863,1781213434000,-389.0,0.0002,2]
[424863864,1781213434000,-248.0,0.0002,2]
[424863865,1781213434000,-269.0,0.0002,2]
[424863868,1781213434000,-1292.0,0.0002,2]
[424863869,1781213434000,-241.0,0.0002,2]
[424863867,1781213434000,-802.0,0.0002,2]
[424863879,1781213434000,-357.33334463,0.000206,2]
[424863866,1781213434000,-345.0,0.0002,2]
[424863871,1781213434000,-199.0,0.0002,2]
[424863873,1781213434000,-260.0,0.0002,2]
[424863872,1781213434000,-472.0,0.0002,2]
[424863875,1781213434000,-357.33334463,0.000202,2]
[424863877,1781213434000,-357.33334463,0.000204,2]
[424863874,1781213434000,-279.0,0.0002,2]
[424863876,1781213434000,-1054.6,0.00020381,2]
[424863880,1781213434000,-6441.60196652,0.00020705,2]
[424863878,1781213434000,-521.0,0.00020505,4]
[424863854,1781213434000,-357.33334463,0.0002,2]
[424863859,1781213434000,-200000.0,0.0002,2]
[424863826,1781213434000,-521.0,0.00018626,2]
[424863851,1781213434000,-500.0,0.00019999,2]
[424863849,1781213434000,-151.0,0.00019928,2]
[424863837,1781213434000,-246.989434,0.000196,2]
[424863831,1781213434000,-521.0,0.00019253,3]
[424863834,1781213434000,-310.0,0.00019562,2]
[424863830,1781213434000,-560.49449867,0.00018989,2]
[424863832,1781213434000,-242.93838,0.00019304,2]
[424863828,1781213434000,-150.0,0.00018976,2]
[424863829,1781213434000,-160.0,0.00018983,2]
[424863827,1781213434000,-150.0,0.00018976,2]
[424863835,1781213434000,-186.85091,0.000196,2]
[424863833,1781213434000,-22051.1428621,0.00019339,7]
[424863838,1781213434000,-181.30339,0.000196,2]
[424863825,1781213434000,-1054.6,0.0001841,2]
[424863840,1781213434000,-240.862501,0.000196,2]
[424863841,1781213434000,-209.691045,0.000196,2]
[424863852,1781213434000,-517.00033299,0.00019999,2]
[424863850,1781213434000,-329.16,0.0001995,2]
[424863842,1781213434000,-270.304863,0.00019698,2]
[424863843,1781213434000,-521.0,0.00019879,3]
[424863846,1781213434000,-151.0,0.00019928,2]
[424863858,1781213434000,-466.629508,0.0002,2]
[424863839,1781213434000,-188.461289,0.000196,2]
[424863848,1781213434000,-151.0,0.00019928,2]
[424863845,1781213434000,-151.0,0.00019928,2]
[424863847,1781213434000,-151.0,0.00019928,2]
[424863844,1781213434000,-10308.5314,0.000199,2]
[424863919,1781213435000,-248.0,0.00022,2]
[424863924,1781213435000,-241.0,0.00022,2]
[424863927,1781213435000,-472.0,0.00022,2]
[424863916,1781213435000,-364.0,0.00022,2]
[424863913,1781213435000,-150.0,0.00021918,2]
[424863911,1781213435000,-5000.0,0.00021918,2]
[424863912,1781213435000,-150.0,0.00021918,2]
[424863915,1781213435000,-466.629508,0.00022,2]
[424863910,1781213435000,-473.64339052,0.000219,2]
[424863921,1781213435000,-345.0,0.00022,2]
[424863914,1781213435000,-2027.83010996,0.00022,2]
[424863926,1781213435000,-199.0,0.00022,2]
[424863928,1781213435000,-260.0,0.00022,2]
[424863922,1781213435000,-802.0,0.00022,2]
[424863923,1781213435000,-1292.0,0.00022,2]
[424863918,1781213435000,-389.0,0.00022,2]
[424863920,1781213435000,-269.0,0.00022,2]
[424863925,1781213435000,-730.19,0.00022,2]
[424863929,1781213435000,-279.0,0.00022,2]
[424863939,1781213435000,-345.0,0.00023,2]
[424863938,1781213435000,-269.0,0.00023,2]
[424863936,1781213435000,-389.0,0.00023,2]
[424863930,1781213435000,-1054.6,0.00022353,2]
[424863931,1781213435000,-521.0,0.00022384,6]
[424863909,1781213435000,-521.0,0.00021758,5]
[424863917,1781213435000,-450.0,0.00022,2]
[424863908,1781213435000,-473.64339052,0.000216,2]
[424863885,1781213435000,-466.629508,0.00021,2]
[424863906,1781213435000,-250.0,0.00021546,2]
[424863933,1781213435000,-696.5,0.00022466,2]
[424863882,1781213435000,-182.6871772,0.00020777,2]
[424863881,1781213435000,-279.27892986,0.00020771,2]
[424863883,1781213435000,-357.33334463,0.000208,2]
[424863884,1781213435000,-473.64339052,0.00021,2]
[424863889,1781213435000,-269.0,0.00021,2]
[424863887,1781213435000,-389.0,0.00021,2]
[424863886,1781213435000,-364.0,0.00021,2]
[424863891,1781213435000,-802.0,0.00021,2]
[424863890,1781213435000,-345.0,0.00021,2]
[424863892,1781213435000,-1292.0,0.00021,2]
[424863893,1781213435000,-241.0,0.00021,2]
[424863894,1781213435000,-199.0,0.00021,2]
[424863888,1781213435000,-248.0,0.00021,2]
[424863895,1781213435000,-472.0,0.00021,2]
[424863897,1781213435000,-279.0,0.00021,2]
[424863899,1781213435000,-174.7,0.0002113,2]
[424863898,1781213435000,-1124.99999999,0.00021096,2]
[424863896,1781213435000,-260.0,0.00021,2]
[424863901,1781213435000,-473.64339052,0.000212,2]
[424863900,1781213435000,-521.0,0.00021131,4]
[424863904,1781213435000,-300.0,0.00021546,2]
[424863902,1781213435000,-3102.91,0.00021273,2]
[424863903,1781213435000,-473.64339052,0.000214,2]
[424863905,1781213435000,-300.0,0.00021546,2]
[424863907,1781213435000,-150.0,0.00021546,2]
[424863932,1781213435000,-1897.35,0.00022466,2]
[424863935,1781213435000,-364.0,0.00023,2]
[424863993,1781213435000,-821.0,0.00025,2]
[424863967,1781213435000,-472.0,0.00024,2]
[424863970,1781213435000,-500.0,0.00024058,2]
[424863966,1781213435000,-199.0,0.00024,2]
[424863972,1781213435000,-150.0,0.00024164,2]
[424863971,1781213435000,-500.0,0.00024058,2]
[424863974,1781213435000,-784.89,0.00024174,2]
[424863973,1781213435000,-26046.27,0.00024174,2]
[424863976,1781213435000,-521.0,0.00024263,7]
[424863975,1781213435000,-1904.64,0.00024174,2]
[424863978,1781213435000,-16487.5295529,0.00024501,7]
[424863977,1781213435000,-1054.6,0.00024324,2]
[424863979,1781213435000,-411.53320265,0.00024634,2]
[424863985,1781213435000,-500.0,0.00024779,2]
[424863981,1781213435000,-172.14,0.00024658,2]
[424863984,1781213435000,-500.0,0.00024779,2]
[424863980,1781213435000,-1000.0,0.00024658,2]
[424863983,1781213435000,-730.19,0.00024718,7]
[424863986,1781213435000,-521.0,0.00024889,8]
[424863988,1781213435000,-401.29885595,0.00025,2]
[424863989,1781213435000,-253.0,0.00025,2]
[424863992,1781213435000,-151.0,0.00025,2]
[424863991,1781213435000,-356.0,0.00025,2]
[424863934,1781213435000,-466.629508,0.00023,2]
[424863990,1781213435000,-277.0,0.00025,2]
[424863987,1781213435000,-370.0,0.00025,2]
[424863969,1781213435000,-279.0,0.00024,2]
[424863965,1781213435000,-241.0,0.00024,2]
[424863982,1781213435000,-150.0,0.00024658,2]
[424863964,1781213435000,-1292.0,0.00024,2]
[424863937,1781213435000,-248.0,0.00023,2]
[424863968,1781213435000,-260.0,0.00024,2]
[424863951,1781213435000,-6441.60196652,0.00023074,2]
[424863952,1781213435000,-182.30537748,0.00023078,2]
[424863943,1781213435000,-199.0,0.00023,2]
[424863948,1781213435000,-9346.04406514,0.00023001,7]
[424863950,1781213435000,-150.0,0.00023014,2]
[424863946,1781213435000,-279.0,0.00023,2]
[424863947,1781213435000,-3541.48845522,0.00023001,7]
[424863942,1781213435000,-241.0,0.00023,2]
[424863941,1781213435000,-1292.0,0.00023,2]
[424863945,1781213435000,-260.0,0.00023,2]
[424863944,1781213435000,-472.0,0.00023,2]
[424863940,1781213435000,-802.0,0.00023,2]
[424863955,1781213435000,-521.0,0.00023636,7]
[424863949,1781213435000,-521.0,0.0002301,6]
[424863956,1781213435000,-466.629508,0.00024,2]
[424863961,1781213435000,-269.0,0.00024,2]
[424863957,1781213435000,-364.0,0.00024,2]
[424863958,1781213435000,-500.0,0.00024,2]
[424863962,1781213435000,-345.0,0.00024,2]
[424863953,1781213435000,-560.49449867,0.00023084,2]
[424863963,1781213435000,-802.0,0.00024,2]
[424863959,1781213435000,-389.0,0.00024,2]
[424863954,1781213435000,-150.0,0.00023288,2]
[424863960,1781213435000,-248.0,0.00024,2]
[424864032,1781213436000,-163.18901321,0.00027353,7]
[424864022,1781213436000,-150.0,0.00026641,2]
[424864025,1781213436000,-500.0,0.00027077,2]
[424864028,1781213436000,-181.85894618,0.0002735,7]
[424864027,1781213436000,-185.32804338,0.0002735,7]
[424864024,1781213436000,-500.0,0.00027077,2]
[424864029,1781213436000,-188.70233048,0.0002735,7]
[424864021,1781213436000,-209.3116957,0.00026599,2]
[424864026,1781213436000,-560.49449867,0.00027179,2]
[424864030,1781213436000,-163.1108606,0.00027353,7]
[424864039,1781213436000,-500.0,0.00027397,20]
[424864037,1781213436000,-151.22155108,0.00027353,7]
[424864035,1781213436000,-153.28769057,0.00027353,2]
[424864033,1781213436000,-179.35156854,0.00027353,7]
[424864034,1781213436000,-159.24605847,0.00027353,7]
[424864031,1781213436000,-167.11306673,0.00027353,7]
[424864038,1781213436000,-521.0,0.00027394,10]
[424864041,1781213436000,-538.02332496,0.00027397,20]
[424864045,1781213436000,-11478.72,0.00027397,10]
[424864048,1781213436000,-199.0,0.000274,7]
[424864044,1781213436000,-300.0,0.00027397,2]
[424864049,1781213436000,-730.19,0.00027436,7]
[424864023,1781213436000,-521.0,0.00026768,10]
[424864036,1781213436000,-156.0553129,0.00027353,7]
[424864020,1781213436000,-423.2,0.000263,7]
[424864043,1781213436000,-760.29,0.00027397,20]
[424864011,1781213436000,-26046.27,0.00025786,2]
[424863994,1781213436000,-1306.0,0.00025,2]
[424864002,1781213436000,-154.29,0.00025,2]
[424863998,1781213436000,-279.0,0.00025,2]
[424864003,1781213436000,-299.2079576,0.00025278,2]
[424864005,1781213436000,-6441.60196652,0.00025443,2]
[424863999,1781213436000,-298.0,0.00025,2]
[424864007,1781213436000,-500.0,0.00025523,2]
[424864001,1781213436000,-154.29,0.00025,2]
[424864004,1781213436000,-150.0,0.00025373,2]
[424863997,1781213436000,-491.0,0.00025,2]
[424863995,1781213436000,-244.0,0.00025,2]
[424864006,1781213436000,-521.0,0.00025515,9]
[424864000,1781213436000,-154.29,0.00025,2]
[424864008,1781213436000,-500.0,0.00025523,2]
[424864010,1781213436000,-3102.91,0.00025786,2]
[424864015,1781213436000,-550.0,0.00026,2]
[424864014,1781213436000,-191.0,0.00025858,2]
[424864017,1781213436000,-500.0,0.00026289,2]
[424864013,1781213436000,-1904.64,0.00025786,2]
[424864018,1781213436000,-500.0,0.00026289,2]
[424864016,1781213436000,-521.0,0.00026141,9]
[424864012,1781213436000,-784.89,0.00025786,2]
[424864009,1781213436000,-509.05320754,0.00025617,30]
[424864019,1781213436000,-1054.6,0.00026296,2]
[424864040,1781213436000,-500.0,0.00027397,20]
[424863996,1781213436000,-215.0,0.00025,2]
[424864042,1781213436000,-1500.0,0.00027397,2]
[424864077,1781213436000,-3643.0,0.00027725,2]
[424864081,1781213436000,-323.6,0.00027763,7]
[424864075,1781213436000,-411.66,0.00027711,7]
[424864080,1781213436000,-327.7,0.00027763,7]
[424864078,1781213436000,-327.7,0.00027733,2]
[424864082,1781213436000,-327.7,0.00027794,30]
[424864083,1781213436000,-323.6,0.00027794,30]
[424864084,1781213436000,-327.7,0.00027824,2]
[424864085,1781213436000,-323.6,0.00027824,2]
[424864087,1781213436000,-323.6,0.00027855,7]
[424864086,1781213436000,-327.7,0.00027855,7]
[424864079,1781213436000,-323.6,0.00027733,2]
[424864092,1781213436000,-327.7,0.00027885,30]
[424864094,1781213436000,-500.0,0.0002789,15]
[424864089,1781213436000,-952.29,0.00027872,2]
[424864093,1781213436000,-323.6,0.00027885,30]
[424864099,1781213436000,-327.7,0.00027946,7]
[424864090,1781213436000,-411.66,0.00027872,2]
[424864088,1781213436000,-1228.5,0.00027872,2]
[424864096,1781213436000,-327.7,0.00027916,2]
[424864100,1781213436000,-323.6,0.00027946,7]
[424864097,1781213436000,-323.6,0.00027916,2]
[424864098,1781213436000,-700.0,0.00027945,10]
[424864050,1781213436000,-500.0,0.000275,7]
[424864091,1781213436000,-409.52,0.00027872,2]
[424864076,1781213436000,-409.52,0.00027711,7]
[424864095,1781213436000,-500.0,0.0002789,15]
[424864074,1781213436000,-952.29,0.00027711,7]
[424864073,1781213436000,-1228.5,0.00027711,7]
[424864047,1781213436000,-162.89675845,0.00027397,7]
[424864052,1781213436000,-1228.5,0.0002755,30]
[424864051,1781213436000,-24664.35815676,0.00027501,14]
[424864054,1781213436000,-158.55225597,0.0002755,30]
[424864053,1781213436000,-952.29,0.0002755,30]
[424864055,1781213436000,-174.98940847,0.0002755,30]
[424864058,1781213436000,-411.66,0.0002755,30]
[424864056,1781213436000,-150.0,0.0002755,30]
[424864057,1781213436000,-327.7,0.0002755,2]
[424864061,1781213436000,-327.7,0.0002758,7]
[424864059,1781213436000,-323.6,0.0002755,2]
[424864046,1781213436000,-9565.6,0.00027397,10]
[424864065,1781213436000,-323.6,0.00027611,30]
[424864060,1781213436000,-409.52,0.0002755,30]
[424864068,1781213436000,-327.7,0.00027672,7]
[424864072,1781213436000,-323.6,0.00027702,30]
[424864070,1781213436000,-423.2,0.000277,7]
[424864071,1781213436000,-327.7,0.00027702,30]
[424864066,1781213436000,-327.7,0.00027641,2]
[424864067,1781213436000,-323.6,0.00027641,2]
[424864063,1781213436000,-255.0,0.00027582,2]
[424864064,1781213436000,-327.7,0.00027611,30]
[424864062,1781213436000,-323.6,0.0002758,7]
[424864069,1781213436000,-323.6,0.00027672,7]
[424864130,1781213437000,-172.14,0.0002831,2]
[424864129,1781213437000,-199.0,0.000283,7]
[424864131,1781213437000,-1228.5,0.00028355,2]
[424864136,1781213437000,-152.59230985,0.00028642,7]
[424864127,1781213437000,-409.52,0.00028194,7]
[424864133,1781213437000,-1228.5,0.00028516,30]
[424864135,1781213437000,-198.30946013,0.0002852,2]
[424864132,1781213437000,-952.29,0.00028355,2]
[424864134,1781213437000,-952.29,0.00028516,30]
[424864125,1781213437000,-952.29,0.00028194,7]
[424864141,1781213437000,-363.71789236,0.00028642,7]
[424864146,1781213437000,-318.49211694,0.00028646,7]
[424864147,1781213437000,-306.57538114,0.00028646,2]
[424864148,1781213437000,-189.92424285,0.00028646,7]
[424864142,1781213437000,-326.22172121,0.00028646,7]
[424864149,1781213437000,-312.1106258,0.00028646,7]
[424864137,1781213437000,-153.84416623,0.00028642,7]
[424864140,1781213437000,-377.40466096,0.00028642,7]
[424864144,1781213437000,-326.37802642,0.00028646,7]
[424864139,1781213437000,-370.65608675,0.00028642,7]
[424864128,1781213437000,-1054.6,0.00028267,2]
[424864143,1781213437000,-334.22613345,0.00028646,7]
[424864138,1781213437000,-325.7935169,0.00028642,7]
[424864126,1781213437000,-411.66,0.00028194,7]
[424864114,1781213437000,-323.6,0.00028038,7]
[424864121,1781213437000,-1227.0,0.00028102,2]
[424864150,1781213437000,-163.46200504,0.00028646,7]
[424864105,1781213437000,-215.95576085,0.00028,7]
[424864101,1781213437000,-150.0,0.00027973,2]
[424864104,1781213437000,-600.0,0.00028,2]
[424864103,1781213437000,-323.6,0.00027977,30]
[424864102,1781213437000,-327.7,0.00027977,30]
[424864108,1781213437000,-521.0,0.0002802,11]
[424864106,1781213437000,-327.7,0.00028007,2]
[424864109,1781213437000,-1228.5,0.00028033,30]
[424864107,1781213437000,-323.6,0.00028007,2]
[424864124,1781213437000,-1228.5,0.00028194,7]
[424864111,1781213437000,-411.66,0.00028033,30]
[424864112,1781213437000,-409.52,0.00028033,30]
[424864113,1781213437000,-327.7,0.00028038,7]
[424864123,1781213437000,-323.6,0.0002813,7]
[424864117,1781213437000,-327.7,0.00028099,2]
[424864118,1781213437000,-323.6,0.00028099,2]
[424864116,1781213437000,-323.6,0.00028068,30]
[424864122,1781213437000,-327.76,0.0002813,7]
[424864115,1781213437000,-327.7,0.00028068,30]
[424864119,1781213437000,-382.0,0.00028102,2]
[424864120,1781213437000,-1274.0,0.00028102,2]
[424864110,1781213437000,-952.29,0.00028033,30]
[424864152,1781213437000,-521.0,0.00028646,11]
[424864145,1781213437000,-358.70313707,0.00028646,7]
[424864153,1781213437000,-1228.5,0.00028677,7]
[424864184,1781213437000,-199.0,0.000291,7]
[424864179,1781213437000,-4055.67,0.00029,120]
[424864182,1781213437000,-158.55225595,0.00029,30]
[424864181,1781213437000,-233.36,0.00029,2]
[424864186,1781213437000,-364.0,0.00029149,30]
[424864196,1781213437000,-260.0,0.00029154,30]
[424864188,1781213437000,-248.0,0.00029149,30]
[424864185,1781213437000,-152.0,0.00029149,30]
[424864197,1781213437000,-279.0,0.00029154,30]
[424864190,1781213437000,-345.0,0.00029149,30]
[424864189,1781213437000,-269.0,0.00029149,30]
[424864192,1781213437000,-1292.0,0.00029154,30]
[424864194,1781213437000,-199.0,0.00029154,30]
[424864191,1781213437000,-802.0,0.00029154,30]
[424864193,1781213437000,-241.0,0.00029154,30]
[424864195,1781213437000,-472.0,0.00029154,30]
[424864198,1781213437000,-1030.0,0.00029164,2]
[424864200,1781213437000,-1107.63007,0.00029164,2]
[424864199,1781213437000,-1068.11,0.00029164,2]
[424864201,1781213437000,-500.0,0.00029164,2]
[424864202,1781213437000,-1148.61238259,0.00029164,2]
[424864203,1781213437000,-1191.11104074,0.00029164,2]
[424864154,1781213437000,-952.29,0.00028677,7]
[424864180,1781213437000,-233.36,0.00029,2]
[424864183,1781213437000,-719.71,0.000291,4]
[424864187,1781213437000,-389.0,0.00029149,30]
[424864175,1781213437000,-233.36,0.00029,2]
[424864151,1781213437000,-302.44310216,0.00028646,7]
[424864176,1781213437000,-3000.0,0.00029,2]
[424864155,1781213437000,-500.0,0.00028726,17]
[424864156,1781213437000,-500.0,0.00028726,17]
[424864158,1781213437000,-301.32,0.00028826,2]
[424864159,1781213437000,-3000.0,0.00028826,2]
[424864157,1781213437000,-860.78,0.00028826,2]
[424864161,1781213437000,-3000.0,0.00028826,2]
[424864163,1781213437000,-401.0,0.00028826,2]
[424864173,1781213437000,-358.66,0.00029,2]
[424864166,1781213437000,-1228.5,0.00028838,2]
[424864162,1781213437000,-1408.61,0.00028826,2]
[424864160,1781213437000,-3000.0,0.00028826,2]
[424864164,1781213437000,-2278.0,0.00028826,2]
[424864165,1781213437000,-2212.0,0.00028826,2]
[424864172,1781213437000,-952.33,0.00029,30]
[424864168,1781213437000,-642.0,0.000289,2]
[424864171,1781213437000,-1228.59,0.00029,30]
[424864167,1781213437000,-952.29,0.00028838,2]
[424864170,1781213437000,-233.36,0.00029,2]
[424864169,1781213437000,-167.46807175,0.00028971,2]
[424864174,1781213437000,-156.69078566,0.00029,2]
[424864177,1781213437000,-1336.92,0.00029,2]
[424864178,1781213437000,-233.36,0.00029,2]
[424864249,1781213438000,-4055.67,0.00029685,120]
[424864247,1781213438000,-299.2079576,0.00029613,2]
[424864244,1781213438000,-500.0,0.00029588,18]
[424864254,1781213438000,-500.0,0.00029694,30]
[424864255,1781213438000,-500.0,0.00029694,30]
[424864241,1781213438000,-326.92401008,0.00029507,7]
[424864243,1781213438000,-500.0,0.00029588,18]
[424864242,1781213438000,-453.66465325,0.00029507,7]
[424864239,1781213438000,-379.8484857,0.00029507,7]
[424864253,1781213438000,-500.0,0.00029694,30]
[424864251,1781213438000,-500.0,0.00029694,30]
[424864252,1781213438000,-500.0,0.00029694,30]
[424864250,1781213438000,-500.0,0.00029694,30]
[424864262,1781213438000,-600.88936551,0.000299,2]
[424864256,1781213438000,-500.0,0.00029694,30]
[424864261,1781213438000,-600.88936551,0.000299,2]
[424864264,1781213438000,-600.88936551,0.000299,2]
[424864263,1781213438000,-600.88936551,0.000299,2]
[424864259,1781213438000,-521.0,0.00029899,13]
[424864266,1781213438000,-600.88936551,0.000299,2]
[424864258,1781213438000,-518.5,0.00029712,2]
[424864265,1781213438000,-600.88936551,0.000299,2]
[424864260,1781213438000,-600.88936557,0.000299,2]
[424864267,1781213438000,-600.88936551,0.000299,2]
[424864269,1781213438000,-600.88936551,0.000299,2]
[424864238,1781213438000,-207.178928,0.00029507,5]
[424864257,1781213438000,-781.225,0.00029694,30]
[424864236,1781213438000,-459.86307171,0.00029507,2]
[424864206,1781213438000,-150.0,0.00029372,2]
[424864230,1781213438000,-501.33920018,0.00029507,7]
[424864271,1781213438000,-600.88936551,0.000299,2]
[424864205,1781213438000,-319.0,0.00029306,2]
[424864204,1781213438000,-521.0,0.00029273,12]
[424864208,1781213438000,-305.18461971,0.00029504,7]
[424864207,1781213438000,-208.75109454,0.00029504,7]
[424864209,1781213438000,-218.2486721,0.00029504,7]
[424864210,1781213438000,-198.36476642,0.00029504,7]
[424864212,1781213438000,-307.68833246,0.00029504,7]
[424864224,1781213438000,-545.57683854,0.00029504,7]
[424864222,1781213438000,-566.10699145,0.00029504,7]
[424864211,1781213438000,-247.42429171,0.00029504,7]
[424864226,1781213438000,-151.4770914,0.00029504,7]
[424864228,1781213438000,-489.33258181,0.00029507,7]
[424864215,1781213438000,-213.66750967,0.00029504,7]
[424864219,1781213438000,-488.69027535,0.00029504,7]
[424864218,1781213438000,-199.02709662,0.00029504,7]
[424864214,1781213438000,-205.40773364,0.00029504,7]
[424864216,1781213438000,-242.81820882,0.00029504,7]